Cogmind - Beta 12 @@@ ROGUE MODE // 2023.04.14 @ 18:32:58 Player: Mr Goldstein Result: Destroyed by Y-45 Defender with Beam Rifle Performance ------------- Evolutions (0) 0 Regions Visited (2) 400 Robots Destroyed (46) 230 Value Destroyed (977) 977 Prototype IDs (7) 140 Alien Tech Used (0) 0 Bonus (0) 0 TOTAL SCORE: 1747 Bonus ------- None Cogmind --------- Core Integrity 0/250 Matter 232/300 Energy 250/250 System Corruption 0% Temperature Cool (9) Movement Rolling (135) Ox3 Location -10/Mines Parts ------- > --- POWER (1) -------- Ion Engine > --- PROPULSION (2) --- Armored Wheel Armored Wheel > --- UTILITY (2) ------ Cooling System Huge Storage Unit > --- WEAPON (2) ------- Light Cannon Light Cannon > --- INVENTORY (25) --- Ion Engine Ion Engine Wheel Wheel Wheel Wheel Compact Wheel Improved Heat Sink Cooling System High-capacity Battery (250) Medium Matter Pod (100) Visual Processing Unit Visual Processing Unit Light Armor Plating Light Armor Plating Light Armor Plating Light Armor Plating High-powered Tractor Beam High-powered Tractor Beam Particle Gun Assault Rifle Light Cannon Grenade Launcher Grenade Launcher Grenade Launcher Peak State ------------ > --- POWER ------------ Ion Engine > --- PROPULSION ------- Armored Wheel Armored Wheel > --- UTILITY ---------- Cooling System Huge Storage Unit > --- WEAPON ----------- Light Assault Rifle Light Assault Rifle > --- INVENTORY -------- Ion Engine Ion Engine Wheel Wheel Compact Wheel Armored Wheel Armored Wheel Improved Heat Sink Cooling System High-capacity Battery Visual Processing Unit Visual Processing Unit High-powered Tractor Beam High-powered Tractor Beam Particle Gun Light Cannon Light Cannon Light Cannon Grenade Launcher Grenade Launcher [Rating: 13] Favorites ----------- Power Ion Engine Engine Ion Engine Propulsion Armored Wheel Wheel Armored Wheel Utility Cooling System Device Cooling System Storage Huge Storage Unit Weapon Light Assault Rifle Ballistic Gun Light Assault Rifle Ballistic Cannon Light Cannon Launcher Grenade Launcher Build | -11 -10 -10 ------- Run | Jun Mat Min Slots Evolved . | . . . Power . | . . . Propulsion . | . . . Utility . | . . . Weapon . | . . . Parts Attached 25 | 6 18 1 Power 3 | 1 2 . Engine 3 | 1 2 . Core . | . . . Reactor . | . . . Propulsion 10 | 2 8 . Treads . | . . . Leg . | . . . Wheel 10 | 2 8 . Hover . | . . . Flight . | . . . Utility 4 | 1 3 . Device 2 | . 2 . Storage 2 | 1 1 . Processor . | . . . Hackware . | . . . Protection . | . . . Artifact . | . . . Weapon 8 | 2 5 1 Energy Gun . | . . . Energy Cannon . | . . . Ballistic Gun 5 | 2 3 . Ballistic Cannon 2 | . 1 1 Launcher 1 | . 1 . Special Weapon . | . . . Impact Weapon . | . . . Slashing Weapon . | . . . Piercing Weapon . | . . . Special Melee Weapon . | . . . Unidentified Prototypes . | . . . Parts Lost 8 | . 8 . Power 2 | . 2 . Propulsion 4 | . 4 . Utility . | . . . Weapon 2 | . 2 . Highest Loss Streak 2 | . 2 . To Critical Strikes . | . . . Average Slot Usage (%) 98 | . 98 100 Engine 13 | . 13 14 Wheel 27 | . 27 28 Device 13 | . 13 14 Storage 14 | . 14 14 Ballistic Gun 18 | . 21 . Ballistic Cannon 6 | . 4 21 Launcher 2 | . 2 6 Naked Turns . | . . . Heaviest Build 93 | 13 93 93 Greatest Support 28 | 26 28 24 Greatest Overweight (x) 7 | 1 7 3 Average Overweight (x) 2 | . 2 3 Largest Inventory Capacity 25 | 8 25 25 Average Capacity 21 | 6 21 25 Most Carried 25 | 5 25 25 Average Carried 18 | 2 18 25 Final Capacity 25 | 8 25 25 Final Carried 25 | 1 25 25 Class Distribution -------------------- 100% | Mutant Dominant Class ---------------- Mutant | -10/Materials Mutant | -10/Mines Resources | -11 -10 -10 ----------- Run | Jun Mat Min Matter Collected 1259 | 213 1032 14 Remotely . | . . . Salvage Created 1653 | . 1643 10 Parts 105 | . 103 2 Haulers Intercepted 2 | . 2 . Recyclers Shooed 4 | . 4 . Parts Field Recycled . | . . . Retrieved Matter . | . . . Parts Self-Destructed . | . . . Prevented . | . . . Kills | -11 -10 -10 ------- Run | Jun Mat Min Combat Hostiles Destroyed 30 | . 28 2 Guns 24 | . 24 . Cannons 6 | . 4 2 Classes Destroyed 10 | . 10 . Worker 5 | . 5 . Builder 3 | . 3 . Tunneler 2 | . 2 . Hauler 2 | . 2 . Recycler 3 | . 3 . Mechanic 1 | . 1 . Operator 1 | . 1 . Watcher 3 | . 3 . Swarmer 4 | . 2 2 Grunt 26 | . 26 . Best Kill Streak 4 | . 4 1 Combat Bots Only 3 | . 3 1 Max Kills in Single Turn 1 | . 1 1 Gunslinging . | . . . Exploded . | . . . Melee . | . . . Uniques/NPCs Destroyed . | . . . Combat | -11 -10 -10 -------- Run | Jun Mat Min Damage Taken 1365 | . 1116 249 Core 252 | . 160 92 Absorbed by Shields . | . . . Core Remaining (%) 100 | 100 . . Volleys Fired 213 | . 203 10 Largest 2 | . 2 2 Hottest 70 | . 55 70 Shots Fired 403 | . 385 18 Gun 329 | . 329 . Cannon 63 | . 45 18 Launcher 11 | . 11 . Special . | . . . Kinetic 392 | . 374 18 Thermal . | . . . Explosive 11 | . 11 . Electromagnetic . | . . . Robot Hit Streak 16 | . 16 3 Robot Miss Streak 7 | . 7 3 Penetration Max . | . . . Secondary Targets 1 | . 1 . Max Gunslinging Chain 1 | . 1 . Shots Hit Robots 215 | . 205 10 Core Hits 93 | . 90 3 Critical Kills 1 | . 1 . Critical Parts Destroyed 1 | . 1 . Critical Strikes 2 | . 2 . Destroy 2 | . 2 . Melee Attacks . | . . . Impact . | . . . Slashing . | . . . Piercing . | . . . Sneak Attacks . | . . . Combat Hostiles . | . . . Follow-up Attacks . | . . . Damage Inflicted 2107 | . 1971 136 Guns 1753 | . 1753 . Cannons 342 | . 206 136 Explosions 12 | . 12 . Melee . | . . . Ramming . | . . . Kinetic 2095 | . 1959 136 Thermal . | . . . Explosive 12 | . 12 . Electromagnetic . | . . . Impact . | . . . Slashing . | . . . Piercing . | . . . Highest Corruption . | . . . Average Corruption . | . . . Corruption Purged . | . . . Corruption Blocked . | . . . Overload Shots . | . . . Overflow Damage . | . . . Projectiles . | . . . Explosions . | . . . Melee . | . . . Knockbacks 3 | . 1 2 Impact . | . . . Kinetic 3 | . 1 2 Secondary . | . . . Self-Inflicted Damage 32 | . 32 . Shots 2 | . 2 . Rammed . | . . . Targets Rammed . | . . . Kicked . | . . . Crushed . | . . . Highest Temperature 17 | . 17 . Average Temperature 8 | . 8 . Received Heat Transfer 597 | . 525 72 Siege Activations . | . . . Robots Corrupted . | . . . Combat Hostiles . | . . . Parts Fried . | . . . Impact Corruptions . | . . . Robots Melted . | . . . Combat Hostiles . | . . . Parts Melted . | . . . Heat Transferred . | . . . Parts Sabotaged . | . . . Parts Stolen . | . . . Parts Stripped . | . . . Power Chain Reactions 1 | . 1 . Missiles Intercepted . | . . . Alert | -11 -10 -10 ------- Run | Jun Mat Min Peak Influence 445 | . 445 244 Initial 159 | . . 159 Average 198 | . 201 191 Maximum Alert Level 2 | . 2 1 Low Security (%) 61 | 100 60 60 Level 1 30 | . 29 39 Level 2 8 | . 10 . Level 3 . | . . . Level 4 . | . . . Level 5 . | . . . High Security . | . . . Max Security . | . . . Squads Dispatched 11 | . 11 . Investigation 10 | . 10 . Extermination . | . . . Reinforcement 1 | . 1 . Assault . | . . . Garrison . | . . . Intercept . | . . . Searches Triggered . | . . . Construction Impeded . | . . . Haulers Reinforced . | . . . Active Scanning Responses . | . . . Cargo Convoy Interrupts . | . . . Stealth | -11 -10 -10 --------- Run | Jun Mat Min Distress Signals 1 | . 1 . Communications Jammed . | . . . Distress Signals . | . . . Times Spotted 49 | . 41 8 Peak Tracking Total 4 | . 4 3 Tactical Retreats 3 | . 2 1 Traps | -11 -10 -10 ------- Run | Jun Mat Min Traps Triggered 4 | . 4 . Indirectly . | . . . Trap Hack Attempts . | . . . Triggered . | . . . Disarmed . | . . . Reprogrammed . | . . . Reused . | . . . Traps Extracted . | . . . Installed . | . . . Triggered . | . . . Machines | -11 -10 -10 ---------- Run | Jun Mat Min Machines Disabled 3 | . 3 . Max in Single Turn 2 | . 2 . Machines Repaired . | . . . Machines Sabotaged . | . . . Overloaded Fab Kills . | . . . Hacking | -11 -10 -10 --------- Run | Jun Mat Min Machines Accessed 11 | . 10 1 Terminals 7 | . 7 . Fabricators . | . . . Repair Stations 1 | . 1 . Recycling Units 2 | . 2 . Scanalyzers . | . . . Garrison Access . | . . . Total Hacks 31 | . 30 1 Successful 19 | . 18 1 Failed 12 | . 12 . Catastrophic 3 | . 3 . Database Lockouts . | . . . Manual 10 | . 10 . Terminals 27 | . 27 . Fabricators . | . . . Repair Stations 1 | . 1 . Recycling Units 2 | . 2 . Scanalyzers . | . . . Garrison Access . | . . . Terminal Hacks 12 | . 11 1 Prototype ID Bank 5 | . 5 . Open Door 1 | . . 1 Emergency Access Points 2 | . 2 . Security Status 1 | . 1 . Investigation Status 1 | . 1 . Hauler Manifests 1 | . 1 . Zone Layout 1 | . 1 . Fabricator Hacks . | . . . Repair Station Hacks . | . . . Recycling Unit Hacks . | . . . Scanalyzer . | . . . Garrison Access Hacks . | . . . Unauthorized Hacks 7 | . 7 . Terminals 4 | . 4 . Search 4 | . 4 . Fabricators . | . . . Repair Stations 1 | . 1 . Mechanics 1 | . 1 . Recycling Units 2 | . 2 . Tunnel 2 | . 2 . Scanalyzers . | . . . Garrison Access . | . . . Data Cores Recovered . | . . . Used . | . . . Hacking Detections 5 | . 5 . Full Trace Events 3 | . 3 . Feedback Events . | . . . Feedback Blocked . | . . . Robot Schematics Acquired . | . . . Robots Built . | . . . Authchips . | . . . Time . | . . . Total Robot Build Rating . | . . . Part Schematics Acquired . | . . . Parts Built . | . . . Authchips . | . . . Time . | . . . Total Part Build Rating . | . . . Parts Repaired . | . . . Time . | . . . Parts Recycled . | . . . Recycled Matter . | . . . Retrieved Matter . | . . . Retrieved Components . | . . . Parts Scanalyzed . | . . . Part Schematics Acquired . | . . . Parts Damaged . | . . . Bothacking | -11 -10 -10 ------------ Run | Jun Mat Min Used RIF Installer . | . . . Robots Hacked . | . . . Non-combat . | . . . Combat . | . . . Robot Hacks Applied . | . . . Relay Couplers Released . | . . . Fabnet Peak Effective % . | . . . Robots Rewired . | . . . Allies Hacked . | . . . Hacks Repelled . | . . . Allies | -11 -10 -10 -------- Run | Jun Mat Min Total Allies . | . . . Largest Group . | . . . Highest-Rated Group . | . . . Highest-Rated Ally . | . . . Total Orders . | . . . Ally Attacks . | . . . Total Damage . | . . . Kills . | . . . Allies Corrupted . | . . . Allies Melted . | . . . Intel | -11 -10 -10 ------- Run | Jun Mat Min Robot Analysis Total . | . . . Derelict Logs Recovered . | . . . Drone Launches . | . . . Drone Recoveries . | . . . Exploration | -11 -10 -10 ------------- Run | Jun Mat Min Turns Passed 3023 | 39 2669 315 Spaces Moved 1533 | 35 1310 188 Core 13 | 13 . . Treads . | . . . Legs . | . . . Wheels 1520 | 22 1310 188 Hover . | . . . Flight . | . . . Fastest Speed 50 | 50 90 135 Average Speed 125 | 79 125 135 Slowest Speed 195 | 100 195 135 Overloaded Moves . | . . . Propulsion Burnouts . | . . . Robots Hopped . | . . . Cave-ins Triggered . | . . . Exploration Rate (%) 44 | 3 95 36 Regions Visited 2 Branch Regions 1 Pre-discovered Areas 2 | . 2 . Known Exits Taken . | . . . Unknown Exits Taken 2 | 1 1 . Scrap Searched 1 | . . 1 Spaces Dug 5 | . 5 . Terrain Destroyed 93 | . 93 . Melee . | . . . Projectile . | . . . AOE 93 | . 93 . Terrain Rammed . | . . . Walls Destroyed . | . . . Machines Disabled . | . . . Actions | -11 -10 -10 --------- Run | Jun Mat Min Total 2278 | 45 2002 231 Wait 453 | . 423 30 Move 1531 | 34 1309 188 Hop . | . . . Pick Up 45 | 5 39 1 Fast Attach 2 | 2 . . Attach 15 | 4 11 . Detach 2 | . 2 . Swap 8 | . 7 1 Drop 9 | . 8 1 Fire 213 | . 203 10 Melee . | . . . Ram . | . . . Kick . | . . . Crush . | . . . Escape Stasis . | . . . Rewire . | . . . Trap . | . . . Miscellaneous . | . . . Route ------- -11/Junkyard -10/Materials (discovered 4 exits: [*Mat x3] / *Min) -10/Mines History --------- Turn | Location | Event 15 | -11/Junkyard | Discovered new exit (range 15) 40 | -11/Junkyard | Entered Materials 254 | -10/Materials | Discovered new exit (range 16) 315 | -10/Materials | Build established: Mutant 325 | -10/Materials | Discovered new exit (range 14) 325 | -10/Materials | Discovered new exit (range 19) 1211 | -10/Materials | Discovered new exit (range 15) 1800 | -10/Materials | Core integrity fell below 50% 2709 | -10/Materials | Entered Mines 2716 | -10/Mines | Found the Drone Emporium 2799 | -10/Mines | YI-UF0 nonchalantly dropped a Grenade Launcher on the ground 3017 | -10/Mines | Core integrity fell below 20% 3024 | -10/Mines | Destroyed by Y-45 Defender with Beam Rifle Last Messages --------------- were from the Merchants Guild. I haven't even officially opened my Drone Emporium yet but am totally ready to tell them where they can shove that C&D." 02718_ 4A-BJ5(g): "I'm a fan of the free market. Free drones for all! No strings attached!" 02790_ Searching scrap... 02790_ Found Hcp. Matter Pod. 02790_ Found 27 Matter. 02798_ T-07 Excavator is excavating. 02799_ YI-UF0 nonchalantly drops a Grenade Launcher on the ground. 02801_ Dropped Lgt. Assault Rifle. 02801_ Acquired Grenade Launcher. 02829_ S-10 Pest destroyed. 02833_ Acquired 7 matter. 02834_ Acquired 1 matter. 02871_ The unstable cave ceiling collapses. 02882_ YI-UF0 mumbles something. 02895_ S-10 Pest knocked back. 02899_ YI-UF0 mumbles something. 02901_ S-10 Pest destroyed. 02908_ Acquired 3 matter. Map ----- +----------------------------------------------------+ | | | | | | | | | | | | | ????????????????????????????????????????????? | | ????????????????????????????????????????????? | | ????????????????????????????????????????????? | | ????????????????????????????????????????????? | | ????????????????????????????????????????????? | | ????????????????????????????????????????????? | | ??????????????????###???????????????????????? | | ?????????????????? ???????????????????????? | | ??????????????????# ???????????????????????? | | ??????????????????# ???????????????????????? | | ??????????????????# ???????????????????????? | | ??????????????????# #??????????????????????? | | ??????????????????# #????????????????###??## | | ??????????????????# #???????????????# ####" | | ??????????????????# ###????????????# ##" | | ??????????????????# ##??????????? ##"! | | ??????????????????# ##?????????# ##" | | ??????????????????# #??####### ??#" | | ??????????????##"??# #### #????##" | | ??????????????#"" #@ ## #??????## | | ??????????????#|[ %Y #???????? | | ??????????????#!!% / #???????? | | ??????????????#"" # ## #???????? | | ??????????????##"Y## ##### ##???????? | | ???????????????###?### #####???# #????????? | | ?????????????????????####???????# #????????# | | ????????????????????????????????# ########## | | ????????????????????????????????# | | ????????????????????????????????# | | ????????????????????????????????# ########### | | ????????????????????????????????# #?????????? | | ???????????????????????????????? #?????????? | | ???????????????????????????????###??????????? | | ????????????????????????????????????????????? | | ????????????????????????????????????????????? | | ????????????????????????????????????????????? | | ????????????????????????????????????????????? | | ????????????????????????????????????????????? | | ????????????????????????????????????????????? | | ????????????????????????????????????????????? | | ????????????????????????????????????????????? | | ????????????????????????????????????????????? | | ????????????????????????????????????????????? | | ????????????????????????????????????????????? | +----------------------------------------------------+ Best States ------------- Heat Dissipation 47 Energy Generation 10 Energy Capacity 250 Matter Stores 300 Matter Capacity 300 Sight Range 16 Terrain Scan Density 10 Evasion (%) 50 Item Schematics ----------------- None Robot Schematics ------------------ None Fabricated ------------ Nothing Alien Tech Used ----------------- None Achievements -------------- None Challenges ------------ None Game ------ Seed BurstHardcellTerminator Manual? 0 Play Time 00:26:32 Cumulative 105.0 hours Start 2023.04.14 @ 17:56:35 End 2023.04.14 @ 18:32:58 Sessions 1 Manual Loads 0 Difficulty Rogue Special Mode None Game No. 311 Rogue 311 Adventurer 0 Explorer 0 Win Type - Total 4 Types 4/0/0/0/0/0/0/0/0 Lore% 57 Gallery% 58 Achievement% 51 Wizard Run 0 Options --------- ASCII 0 Keyboard 0 Movement Mouse Keybinds 0 Fullscreen 1 Font 12/Smallcaps Map View 83x54 Tactical HUD 1 Map Filters NONE Filters NONE Steam 1 RUN: 709f35b3-e5e8-4854-995a-332ad1d4ea93